fUST/lending_fUST_20240516
["ID","MTS","AMOUNT","RATE_DAILY","PERIOD"]
[327086964,1715803937780,154.82968734,9.999e-05,2]
[327086965,1715804075462,683.27698247,0.00017919,2]
[327086970,1715804141658,4460.48445263,0.00018009,2]
[327086971,1715804294138,184.71430301,0.00017905,2]
[327086972,1715804299341,306.3083692,0.00017141,2]
[327086973,1715804305888,7890.55584427,9.999e-05,2]
[327086974,1715804306186,9556.33105858,0.00018,2]
[327086975,1715804309992,5550.0587123,0.00017009,2]
[327086976,1715804314635,9394.10786134,0.00018,2]
[327086977,1715804358283,181.42014251,0.00018,2]
[327086978,1715804360823,597.86735967,0.00017903,2]
[327086979,1715804380737,9556.33105858,0.00018,2]
[327086980,1715804397456,9556.33105858,0.00018,2]
[327086981,1715804481117,11045.87058059,0.00018,2]
[327086982,1715804485428,9556.33105858,0.00018,2]
[327086983,1715804488053,10445.91088101,0.00018,2]
[327086984,1715804501171,1677.41371361,0.00018,2]
[327086985,1715804501251,9556.33105858,0.00018,2]
[327086988,1715804517372,4154.65304189,0.00018,2]
[327086989,1715804641352,523.13393972,0.00017905,2]
[327086990,1715804682300,165.76807821,0.00017903,2]
[327086996,1715804813664,149.98362007,0.00017905,2]
[327087000,1715804921617,457.74219722,0.00017905,2]
[327087060,1715805032721,-1053.26184066,0.00018002,2]
[327087062,1715805032731,-1679.73219039,0.00018003,2]
[327087064,1715805032740,-104269.79638828,0.00018004,2]
[327087065,1715805032749,-53864.76029317,0.00018005,2]
[327087066,1715805032758,-1495.65941735,0.00018008,2]
[327087067,1715805032768,-2380.12697789,0.00018019,2]
[327087068,1715805032777,-1148.14078624,0.0001802,2]
[327087069,1715805032787,-1881.80914661,0.00018021,2]
[327087070,1715805032797,-192.45,0.00018022,2]
[327087071,1715805032808,-1417.33482833,0.000189,2]
[327087072,1715805032818,-3935.00798279,0.00018978,2]
[327087073,1715805032827,-457.7421972,0.0001909,2]
[327087074,1715805032837,-150.0,0.00019114,2]
[327087075,1715805032846,-265.24374591,0.00019146,2]
[327087076,1715805032856,-158.30795791,0.00019172,2]
[327087077,1715805032866,-266.27035804,0.00019174,2]
[327087078,1715805032876,-314.3253547,0.00019174,2]
[327087079,1715805032885,-455.9748396,0.00019174,2]
[327087080,1715805032895,-718.89573392,0.00019174,2]
[327087082,1715805032904,-162.95857896,0.00019174,2]
[327087084,1715805032914,-280.53689219,0.00019174,2]
[327087086,1715805032923,-1510.61521671,0.00019174,2]
[327087230,1715805040887,-4185.78401955,0.00019174,2]
[327087231,1715805040930,-447.09108572,0.00019174,2]
[327087340,1715805055196,769.01317439,0.00017998,2]
[327087347,1715805793843,52334.0,0.0001789,2]
[327087348,1715806036183,-2633.04320867,0.00018687,2]
[327087349,1715806036206,-6959.20597892,0.00018688,2]
[327087350,1715806036226,-8639.99239821,0.00018694,2]
[327087351,1715806036246,-718.09485776,0.00018731,2]
[327087352,1715806036267,-343.3066479,0.00018763,2]
[327087353,1715806036288,-162.32200811,0.000188,2]
[327087354,1715806036310,-158.86065463,0.000188,2]
[327087355,1715806036333,-513.18353158,0.00018855,2]
[327087356,1715806036354,-219.95251882,0.00018856,2]
[327087357,1715806036377,-87178.96664708,0.00018857,2]
[327087358,1715806052984,689.90178801,9.999e-05,2]
[327087360,1715806212667,1042.78198065,9.999e-05,2]
[327087361,1715806213743,262.96419146,9.999e-05,2]
[327087401,1715806231871,-2439.44601016,0.00018854,2]
[327087439,1715806233106,1580.67651805,9.999e-05,2]
[327087468,1715806237965,-902.284,0.00018854,2]
[327087846,1715806241736,-7162.26951411,0.00018854,2]
[327087848,1715806241745,-2314.43204108,0.00018854,2]
[327087850,1715806241755,-689.90178801,0.00018855,2]
[327087852,1715806241764,-9640.29665678,0.00018857,2]
[327087997,1715806242972,-7450.53308442,0.00018857,2]
[327087999,1715806242982,-3935.00798279,0.0001888,2]
[327088001,1715806242994,-944.88988555,0.000189,2]
[327088003,1715806243003,-2461.00167912,0.00019174,2]
[327088005,1715806243013,-372.31624743,0.00019174,2]
[327088007,1715806243024,-189.57956083,0.00019174,2]
[327088009,1715806243033,-163.82516938,0.00019175,2]
[327088011,1715806243043,-380.53498249,0.00019175,2]
[327088013,1715806243052,-204.94636995,0.00019175,2]
[327088015,1715806243062,-301.80187457,0.00019175,2]
[327088017,1715806243072,-225.77602293,0.00019175,2]
[327088019,1715806243082,-154.82968734,0.00019175,2]
[327088021,1715806243091,-154.82968734,0.00019176,2]
[327088023,1715806243100,-182.087703,0.00019178,2]
[327088025,1715806243109,-169.082182,0.00019178,2]
[327088027,1715806243118,-260.98401074,0.00019195,2]
[327088029,1715806243127,-306.0,0.000192,2]
[327088031,1715806243136,-153.0,0.000193,2]
[327088033,1715806243146,-153.0,0.000193,2]
[327088035,1715806243155,-181.1067388,0.000193,2]
[327088037,1715806243163,-153.0,0.000194,2]
[327088039,1715806243173,-153.0,0.000194,2]
[327088041,1715806243181,-150.0,0.00019438,2]
[327088042,1715806243190,-153.0,0.000195,2]
[327088045,1715806243200,-153.0,0.000195,2]
[327088046,1715806243209,-153.0,0.000195,2]
[327088048,1715806243218,-294.4831556,0.000195,2]
[327088050,1715806243227,-153.0,0.000195,2]
[327088052,1715806243237,-153.0,0.000195,2]
[327088054,1715806243246,-153.0,0.000195,2]
[327088056,1715806243255,-153.0,0.000195,2]
[327088058,1715806243265,-1003.204093,0.000195,2]
[327088060,1715806243274,-153.0,0.000195,2]
[327088062,1715806243283,-153.0,0.000195,2]
[327088064,1715806243292,-153.0,0.000196,2]
[327088066,1715806243302,-153.0,0.000196,2]
[327088068,1715806243311,-624.90474289,0.00019668,2]
[327088070,1715806243319,-343.3066479,0.00019786,2]
[327088072,1715806243328,-331.93241001,0.00019799,2]
[327088074,1715806243338,-1000.0,0.00019884,2]
[327088076,1715806243347,-1003.61930091,0.00019886,2]
[327088078,1715806243356,-174.02348586,0.00019894,2]
[327088080,1715806243365,-158.86065461,0.00019898,2]
[327088082,1715806243374,-2000.0,0.000199,2]
[327088084,1715806243384,-158.86065461,0.00019944,2]
[327088085,1715806243393,-870.7,0.0001999,3]
[327088087,1715806243402,-804.36147874,0.00019998,2]
[327088089,1715806243411,-236.41159802,0.00019998,2]
[327088091,1715806243420,-154.9543866,0.00019998,2]
[327088093,1715806243429,-1895.4873316,0.00019998,2]
[327088095,1715806243439,-383.77173943,0.00019998,2]
[327088097,1715806243448,-187.08694253,0.00019998,2]
[327088099,1715806243457,-294.51792014,0.00019998,2]
[327088101,1715806243466,-1148.14078624,0.00019998,2]
[327088103,1715806243476,-906.41637835,0.00019998,2]
[327088105,1715806243485,-154.86067302,0.00019998,2]
[327088107,1715806243495,-187.97493332,0.00019998,2]
[327088109,1715806243504,-189.56884564,0.00019998,2]
[327088111,1715806243513,-409.23025382,0.00019998,2]
[327088113,1715806243522,-1428.13425117,0.00019998,2]
[327088115,1715806243532,-448.87998394,0.00019998,2]
[327088117,1715806243541,-1354.00120504,0.00019998,2]
[327088119,1715806243551,-166.7051548,0.00019998,2]
[327088121,1715806243564,-1603.92555062,0.00019998,2]
[327088123,1715806243573,-1041.48198831,0.00019998,2]
[327088125,1715806243582,-11775.80730487,0.00019998,2]
[327088127,1715806243592,-2398.82924555,0.00019998,2]
[327088129,1715806243601,-500.0,0.00019999,2]
[327088131,1715806243611,-500.0,0.00019999,2]
[327088133,1715806243621,-500.0,0.00019999,2]
[327088135,1715806243630,-500.0,0.00019999,2]
[327088137,1715806243641,-339.96474181,0.00019999,2]
[327088139,1715806243653,-500.0,0.00019999,2]
[327088141,1715806243662,-500.0,0.00019999,2]
[327088143,1715806243672,-500.0,0.00019999,2]
[327088145,1715806243682,-500.0,0.00019999,2]
[327088147,1715806243692,-500.0,0.00019999,2]
[327088149,1715806243701,-500.0,0.00019999,2]
[327088151,1715806243712,-194.76549096,0.00019999,2]
[327088153,1715806243722,-1406.86306644,0.00019999,2]
[327088155,1715806243731,-500.0,0.00019999,2]
[327088157,1715806243740,-25.45830765,0.00019999,2]
[327088312,1715806245475,817.80441059,9.999e-05,2]
[327088395,1715806246626,-153.0,0.000195,2]
[327088396,1715806246636,-444.64944093,0.00019999,2]
[327088397,1715806246647,-320.65201595,0.00019999,2]
[327088398,1715806246657,-220.30993511,0.00019999,2]
[327088399,1715806246666,-300.0,0.00019999,2]
[327088400,1715806246676,-500.0,0.00019999,2]
[327088401,1715806246686,-500.0,0.00019999,2]
[327088402,1715806246695,-500.0,0.00019999,2]
[327088403,1715806246704,-500.0,0.00019999,2]
[327088404,1715806246713,-500.0,0.00019999,2]
[327088405,1715806246723,-500.0,0.00019999,2]
[327088406,1715806246733,-500.0,0.00019999,2]
[327088407,1715806246742,-500.0,0.00019999,2]
[327088408,1715806246752,-500.0,0.00019999,2]
[327088409,1715806246762,-500.0,0.00019999,2]
[327088411,1715806246772,-500.0,0.00019999,2]
[327088412,1715806246781,-170.36927967,0.00019999,2]
[327088413,1715806246791,-500.0,0.00019999,2]
[327088415,1715806246800,-500.0,0.00019999,2]
[327088417,1715806246810,-254.95626712,0.00019999,2]
[327088419,1715806246819,-500.0,0.00019999,2]
[327088421,1715806246829,-500.0,0.00019999,2]
[327088423,1715806246839,-209.05142093,0.00019999,2]
[327088425,1715806246848,-500.88341462,0.00019999,2]
[327088427,1715806246858,-67994.83298697,0.0002,2]
[327088429,1715806246867,-2319.53554062,0.0002,2]
[327088441,1715806246977,-10383.46445938,0.0002,2]
[327088443,1715806246987,-400.0,0.0002,2]
[327088445,1715806246997,-18699.80633934,0.0002,2]
[327088447,1715806247006,-499.95393407,0.0002,2]
[327088449,1715806247016,-281.0,0.0002,2]
[327088451,1715806247026,-322.07196136,0.0002,2]
[327088453,1715806247035,-160.0,0.0002,2]
[327088455,1715806247045,-151.0,0.0002,2]
[327088457,1715806247055,-172.967977,0.0002,2]
[327088459,1715806247064,-172.967977,0.0002,2]
[327088461,1715806247073,-460.733889,0.0002,2]
[327088463,1715806247082,-460.733889,0.0002,2]
[327088465,1715806247092,-3199.67631152,0.0002,2]
[327088468,1715806247102,-168.273909,0.0002,2]
[327088470,1715806247110,-756.765733,0.0002,2]
[327088472,1715806247121,-756.765733,0.0002,2]
[327088474,1715806247130,-151.0,0.0002,2]
[327088475,1715806247141,-151.0,0.0002,2]
[327088478,1715806247153,-151.0,0.0002,2]
[327088480,1715806247162,-151.0,0.0002,2]
[327088481,1715806247171,-195.941669,0.0002,2]
[327088483,1715806247180,-195.941669,0.0002,2]
[327088486,1715806247190,-181.79608,0.0002,2]
[327088487,1715806247199,-181.79608,0.0002,2]
[327088489,1715806247208,-151.0,0.0002,2]
[327088491,1715806247217,-252.815691,0.0002,2]
[327088493,1715806247227,-252.815691,0.0002,2]
[327088496,1715806247237,-801.338098,0.0002,2]
[327088497,1715806247246,-801.338098,0.0002,2]
[327088500,1715806247257,-469.704024,0.0002,2]
[327088502,1715806247268,-469.704024,0.0002,2]
[327088504,1715806247277,-151.0,0.0002,2]
[327088505,1715806247287,-151.0,0.0002,2]
[327088507,1715806247297,-169.176396,0.0002,2]
[327088509,1715806247306,-150.0,0.0002,2]
[327088511,1715806247315,-151.0,0.0002,2]
[327088513,1715806247325,-151.0,0.0002,2]
[327088516,1715806247335,-151.0,0.0002,2]
[327088517,1715806247344,-151.0,0.0002,2]
[327088519,1715806247354,-1691.451609,0.0002,2]
[327088521,1715806247364,-151.0,0.0002,2]
[327088523,1715806247374,-1691.451609,0.0002,2]
[327088526,1715806247383,-151.0,0.0002,2]
[327088528,1715806247395,-659.634578,0.0002,2]
[327088530,1715806247404,-151.0,0.0002,2]
[327088532,1715806247413,-151.0,0.0002,2]
[327088533,1715806247422,-659.634578,0.0002,2]
[327088535,1715806247432,-1000.0,0.0002,2]
[327088538,1715806247441,-154.81422293,0.0002,2]
[327088540,1715806247450,-279.60323409,0.0002,2]
[327088541,1715806247460,-3747.63925233,0.00020044,3]
[327089624,1715806258414,465.86744219,9.999e-05,2]
[327092856,1715806658640,617.8163874,0.00017896,2]
[327092857,1715806922217,1822.9461145,0.00017835,2]
[327092860,1715807022687,24890.0,0.00017852,2]
[327092861,1715807130159,-198.6000127,0.00018547,2]
[327092862,1715807130179,-257.47998596,0.000188,2]
[327092863,1715807130200,-10503.99952427,0.00018834,2]
[327092864,1715807130219,-478.82198085,0.00018834,2]
[327092865,1715807130245,-452.3303047,0.00018834,2]
[327092866,1715807130265,-261.77307443,0.00018834,2]
[327092867,1715807130287,-1349.86150143,0.00018834,2]
[327092868,1715807130308,-406.8641358,0.00018834,2]
[327092869,1715807130476,-282.49185002,0.00018835,2]
[327092870,1715807130501,-592.11266606,0.00018835,2]
[327092871,1715807130520,-679.92659037,0.000189,2]
[327092872,1715807130538,-182.087703,0.00019178,2]
[327092873,1715807130558,-1361.13520741,0.00019771,2]
[327092874,1715807130577,-257.47998592,0.00019818,2]
[327092875,1715807130597,-2000.0,0.000199,2]
[327092876,1715807130616,-293.773,0.00019909,2]
[327092877,1715807130636,-713.6,0.00019948,2]
[327092878,1715807130658,-150.0,0.00019948,2]
[327092879,1715807130679,-104269.79638828,0.00019988,2]
[327092880,1715807130698,-767.36,0.00019989,3]
[327092881,1715807130719,-208.21526337,0.00019997,2]
[327092882,1715807130739,-224.49538238,0.00019997,2]
[327092883,1715807130759,-154.79876161,0.00019998,2]
[327092884,1715807130781,-537.7738602,0.00019998,2]
[327092885,1715807130802,-476.82917671,0.00019998,2]
[327092886,1715807130821,-820.47744241,0.00019998,2]
[327092887,1715807130843,-211.91040012,0.00019999,2]
[327092889,1715807238111,-282.49185002,0.00019897,2]
[327092890,1715807238130,-104269.79638828,0.00019898,2]
[327092891,1715807238149,-10503.99952427,0.00019899,2]
[327092892,1715807238173,-2000.0,0.000199,2]
[327092893,1715807238192,-659.3,0.00019948,2]
[327092894,1715807238212,-150.0,0.00019948,2]
[327092895,1715807238233,-261.77307443,0.00019998,2]
[327092896,1715807238252,-25760.87648681,0.00019998,2]
[327092897,1715807238277,-406.8641358,0.00019998,2]
[327092898,1715807238297,-592.11266606,0.00019998,2]
[327092899,1715807238318,-478.82198085,0.00019998,2]
[327092900,1715807238339,-452.3303047,0.00019998,2]
[327092901,1715807238360,-1349.86150143,0.00019998,2]
[327092902,1715807238381,-139.79760671,0.00019999,2]
[327092903,1715807238402,-214.66432055,0.00019999,2]
[327092904,1715807238423,-500.0,0.00019999,2]
[327092905,1715807238443,-363.82621018,0.00019999,2]
[327092906,1715807238464,-500.0,0.00019999,2]
[327092907,1715807238485,-500.0,0.00019999,2]
[327092908,1715807238505,-500.0,0.00019999,2]
[327092909,1715807238524,-8703.89618602,0.00019999,2]
[327092910,1715807238545,-38139.83158619,0.0002,3]
[327092911,1715807242111,-20028.30191416,0.0002,3]
[327092912,1715807248147,-499.95393407,0.0002,2]
[327092913,1715807248167,-160.0,0.0002,2]
[327092914,1715807248188,-12703.0,0.0002,2]
[327092915,1715807248208,-7439.94077593,0.0002,2]
[327092916,1715807253093,-46752.03255571,0.00019999,2]
[327092917,1715807253114,-513.18353158,0.00019999,2]
[327092918,1715807253136,-260.98401074,0.00019999,2]
[327092919,1715807253155,-1516.20451626,0.00019999,2]
[327092920,1715807253176,-60554.89221104,0.0002,2]
[327092921,1715807253196,-281.0,0.0002,2]
[327092922,1715807253216,-152.17610953,0.0002,2]
[327092923,1715807253236,-200.0,0.0002,2]
[327092924,1715807253258,-170.852222,0.0002,2]
[327092925,1715807253282,-269.4510352,0.00020041,2]
[327092926,1715807253302,-367.82798617,0.00020042,2]
[327092927,1715807253325,-4295.12134587,0.00020044,10]
[327092928,1715807253346,-2357.8329159,0.00020044,2]
[327092929,1715807317859,154.79876161,9.999e-05,2]
[327092930,1715807350202,817.80441059,9.999e-05,2]
[327092961,1715807432101,-985.5075,0.00018899,2]
[327092968,1715807432189,-103284.28888828,0.00018899,2]
[327092970,1715807432198,-679.92659037,0.000189,2]
[327092972,1715807432208,-293.773,0.00019795,2]
[327092974,1715807432217,-265.545928,0.00019843,2]
[327092976,1715807432226,-1361.13520741,0.00019936,2]
[327092978,1715807432235,-155.0,0.00019944,2]
[327092980,1715807432244,-604.4,0.00019948,2]
[327092982,1715807432254,-150.0,0.00019948,2]
[327092984,1715807432263,-702.19428712,0.00019999,2]
[327092985,1715807432273,-151.0,0.0002,2]
[327092988,1715807432283,-543.70867113,0.0002,2]
[327092990,1715807432292,-12703.0,0.0002,2]
[327092991,1715807432302,-67994.83298697,0.0002,2]
[327092993,1715807432312,-7962.61734382,0.0002,2]
[327092995,1715807432324,-815.28986913,0.00020039,2]
[327092997,1715807432335,-294.10145983,0.00020042,2]
[327092999,1715807432348,-1819.51446963,0.00020042,2]
[327093001,1715807432358,-1586.53627158,0.00020043,2]
[327093003,1715807432369,-1349.86150143,0.00020043,2]
[327093005,1715807432380,-8277.1407801,0.00020044,2]
[327093007,1715807432389,-50965.20667483,0.00020044,2]
[327093010,1715807432414,-4850.77365916,0.00020044,2]
[327093039,1715807438463,-150.0,0.00019944,2]
[327093041,1715807438474,-500.0,0.00019999,2]
[327093043,1715807438483,-209.14786305,0.00019999,2]
[327093045,1715807438492,-19177.27489435,0.00020044,2]
[327093047,1715807438501,-590.0,0.000201,2]
[327093049,1715807438510,-388.42743478,0.00020161,2]
[327093051,1715807438519,-279.37199502,0.00020162,2]
[327093053,1715807438528,-88888.0,0.00020163,3]
[327093055,1715807438537,-726.25165875,0.00020261,2]
[327093057,1715807438546,-689.90178801,0.00020261,2]
[327093059,1715807438555,-1211.60101868,0.00020262,2]
[327093061,1715807438564,-262.09871976,0.00020262,2]
[327093063,1715807438573,-36501.69595602,0.00020263,3]
[327093065,1715807438582,-151.0,0.00020263,2]
[327093067,1715807438592,-151.0,0.00020263,2]
[327093069,1715807438601,-1176.836821,0.00020263,2]
[327093071,1715807438609,-1176.836821,0.00020263,2]
[327093073,1715807438618,-414.6605,0.00020263,2]
[327093075,1715807438627,-414.6605,0.00020263,2]
[327093076,1715807438636,-246.271179,0.00020263,2]
[327093077,1715807438645,-246.271179,0.00020263,2]
[327093078,1715807438654,-246.271179,0.00020263,2]
[327093079,1715807438663,-246.271179,0.00020263,2]
[327093080,1715807438672,-151.0,0.00020263,2]
[327093081,1715807438681,-151.0,0.00020263,2]
[327093082,1715807438690,-151.0,0.00020263,2]
[327093083,1715807438698,-151.0,0.00020263,2]
[327093084,1715807438707,-151.0,0.00020263,2]
[327093085,1715807438716,-151.0,0.00020263,2]
[327093086,1715807438725,-681.08916,0.00020263,2]
[327093087,1715807438733,-681.08916,0.00020263,2]
[327093088,1715807438742,-681.08916,0.00020263,2]
[327093089,1715807438751,-681.08916,0.00020263,2]
[327093090,1715807438760,-151.0,0.00020263,2]
[327093091,1715807438769,-151.0,0.00020263,2]
[327093092,1715807438777,-151.0,0.00020263,2]
[327093093,1715807438787,-176.051968,0.00020263,2]
[327093094,1715807438795,-151.0,0.00020263,2]
[327093095,1715807438804,-151.0,0.00020263,2]
[327093096,1715807438814,-151.0,0.00020263,2]
[327093098,1715807438823,-151.0,0.00020263,2]
[327093099,1715807438832,-151.0,0.00020263,2]
[327093101,1715807438842,-151.0,0.00020263,2]
[327093103,1715807438851,-176.347502,0.00020263,2]
[327093104,1715807438860,-176.347502,0.00020263,2]
[327093106,1715807438870,-176.347502,0.00020263,2]
[327093108,1715807438879,-176.347502,0.00020263,2]
[327093109,1715807438888,-176.347502,0.00020263,2]
[327093111,1715807438898,-176.347502,0.00020263,2]
[327093113,1715807438907,-4914.419288,0.00020263,2]
[327093114,1715807438915,-4914.419288,0.00020263,2]
[327093116,1715807438924,-4914.419288,0.00020263,2]
[327093118,1715807438933,-4914.419288,0.00020263,2]
[327093119,1715807438942,-4914.419288,0.00020263,2]
[327093120,1715807438952,-151.0,0.00020263,2]
[327093121,1715807438961,-3215.44502358,0.00020263,2]
[327093157,1715807443438,-1000.0,0.00020263,2]
[327093167,1715807443660,-698.97426442,0.00020263,2]
[327093168,1715807443670,-151.0,0.00020263,2]
[327093169,1715807443679,-151.0,0.00020263,2]
[327093170,1715807443688,-151.0,0.00020263,2]
[327093171,1715807443698,-151.0,0.00020263,2]
[327093172,1715807443707,-151.0,0.00020263,2]
[327093173,1715807443716,-151.0,0.00020263,2]
[327093174,1715807443726,-151.0,0.00020263,2]
[327093175,1715807443735,-171.248297,0.00020263,2]
[327093176,1715807443745,-171.248297,0.00020263,2]
[327093177,1715807443754,-171.248297,0.00020263,2]
[327093178,1715807443763,-185.244171,0.00020263,2]
[327093179,1715807443773,-185.244171,0.00020263,2]
[327093180,1715807443783,-185.244171,0.00020263,2]
[327093181,1715807443793,-171.248297,0.00020263,2]
[327093182,1715807443802,-171.248297,0.00020263,2]
[327093183,1715807443812,-171.248297,0.00020263,2]
[327093184,1715807443821,-185.244171,0.00020263,2]
[327093185,1715807443831,-185.244171,0.00020263,2]
[327093186,1715807443840,-185.244171,0.00020263,2]
[327093187,1715807443849,-151.0,0.00020263,2]
[327093188,1715807443859,-151.0,0.00020263,2]
[327093189,1715807443868,-151.0,0.00020263,2]
[327093190,1715807443878,-227.534122,0.00020263,2]
[327093191,1715807443891,-227.534122,0.00020263,2]
[327093192,1715807443902,-227.534122,0.00020263,2]
[327093193,1715807443911,-721.204288,0.00020263,2]
[327093194,1715807443921,-227.534122,0.00020263,2]
[327093195,1715807443931,-227.534122,0.00020263,2]
[327093196,1715807443940,-721.204288,0.00020263,2]
[327093197,1715807443950,-227.534122,0.00020263,2]
[327093198,1715807443960,-721.204288,0.00020263,2]
[327093199,1715807443969,-721.204288,0.00020263,2]
[327093200,1715807443979,-721.204288,0.00020263,2]
[327093201,1715807443988,-422.733621,0.00020263,2]
[327093202,1715807443998,-721.204288,0.00020263,2]
[327093203,1715807444007,-422.733621,0.00020263,2]
[327093204,1715807444017,-422.733621,0.00020263,2]
[327093205,1715807444027,-422.733621,0.00020263,2]
[327093206,1715807444036,-422.733621,0.00020263,2]
[327093207,1715807444045,-422.733621,0.00020263,2]
[327093208,1715807444054,-151.0,0.00020263,2]
[327093209,1715807444064,-151.0,0.00020263,2]
[327093210,1715807444073,-151.0,0.00020263,2]
[327093211,1715807444083,-151.0,0.00020263,2]
[327093212,1715807444092,-151.0,0.00020263,2]
[327093213,1715807444102,-151.0,0.00020263,2]
[327093214,1715807444111,-151.0,0.00020263,2]
[327093215,1715807444120,-151.0,0.00020263,2]
[327093216,1715807444131,-151.0,0.00020263,2]
[327093217,1715807444140,-151.0,0.00020263,2]
[327093218,1715807444151,-151.0,0.00020263,2]
[327093219,1715807444160,-1543.06822,0.00020263,2]
[327093220,1715807444170,-1543.06822,0.00020263,2]
[327093221,1715807444179,-1543.06822,0.00020263,2]
[327093222,1715807444189,-1543.06822,0.00020263,2]
[327093223,1715807444198,-1543.06822,0.00020263,2]
[327093224,1715807444207,-1543.06822,0.00020263,2]
[327093225,1715807444217,-593.67112,0.00020263,2]
[327093226,1715807444226,-593.67112,0.00020263,2]
[327093227,1715807444236,-593.67112,0.00020263,2]
[327093228,1715807444245,-593.67112,0.00020263,2]
[327093229,1715807444254,-593.67112,0.00020263,2]
[327093230,1715807444264,-593.67112,0.00020263,2]
[327093231,1715807444273,-151.65105,0.00020263,2]
[327093232,1715807444283,-151.0,0.00020263,2]
[327093233,1715807444293,-151.0,0.00020263,2]
[327093234,1715807444302,-151.0,0.00020263,2]
[327093235,1715807444312,-151.0,0.00020263,2]
[327093236,1715807444322,-160.0,0.0002028,2]
[327093237,1715807444336,-309.5829217,0.0002036,2]
[327093238,1715807444346,-154.81422293,0.00020361,2]
[327093239,1715807444355,-305.82804517,0.00020361,2]
[327093240,1715807444366,-181.15285668,0.00020361,2]
[327093241,1715807444376,-279.42588683,0.00020362,2]
[327093242,1715807444385,-15607.17221832,0.00020362,2]
[327093243,1715807444394,-1176.836821,0.00020362,2]
[327093244,1715807444405,-1176.836821,0.00020362,2]
[327093245,1715807444415,-414.6605,0.00020362,2]
[327093246,1715807444425,-414.6605,0.00020362,2]
[327093247,1715807444435,-246.271179,0.00020362,2]
[327093248,1715807444444,-246.271179,0.00020362,2]
[327093249,1715807444454,-151.0,0.00020362,2]
[327093250,1715807444464,-681.08916,0.00020362,2]
[327093251,1715807444473,-681.08916,0.00020362,2]
[327093252,1715807444483,-681.08916,0.00020362,2]
[327093253,1715807444494,-681.08916,0.00020362,2]
[327093254,1715807444503,-151.0,0.00020362,2]
[327093255,1715807444513,-151.0,0.00020362,2]
[327093256,1715807444524,-151.0,0.00020362,2]
[327093257,1715807444534,-174.622112,0.00020362,2]
[327093258,1715807444543,-176.347502,0.00020362,2]
[327093259,1715807444553,-176.347502,0.00020362,2]
[327093260,1715807444563,-176.347502,0.00020362,2]
[327093261,1715807444572,-176.347502,0.00020362,2]
[327093262,1715807444583,-4914.419288,0.00020362,2]
[327093263,1715807444592,-4914.419288,0.00020362,2]
[327093264,1715807444603,-4914.419288,0.00020362,2]
[327093265,1715807444613,-4914.419288,0.00020362,2]
[327093266,1715807444623,-151.0,0.00020362,2]
[327093267,1715807444632,-151.0,0.00020362,2]
[327093268,1715807444641,-151.0,0.00020362,2]
[327093269,1715807444652,-151.0,0.00020362,2]
[327093270,1715807444661,-151.0,0.00020362,2]
[327093271,1715807444670,-194.843204,0.00020362,2]
[327093272,1715807444679,-171.248297,0.00020362,2]
[327093273,1715807444689,-171.248297,0.00020362,2]
[327093274,1715807444698,-185.244171,0.00020362,2]
[327093275,1715807444708,-185.244171,0.00020362,2]
[327093276,1715807444718,-171.248297,0.00020362,2]
[327093277,1715807444727,-171.248297,0.00020362,2]
[327093278,1715807444737,-185.244171,0.00020362,2]
[327093279,1715807444747,-185.244171,0.00020362,2]
[327093280,1715807444756,-151.0,0.00020362,2]
[327093281,1715807444766,-151.0,0.00020362,2]
[327093282,1715807444775,-227.534122,0.00020362,2]
[327093283,1715807444787,-227.534122,0.00020362,2]
[327093284,1715807444797,-227.534122,0.00020362,2]